[Event "Titled Tuesday Blitz June 28 Early 2022"]
[White "Jaskolka, Tomasz"]
[Black "Rosenberg, Evan S"]
[WhiteFideId "1170791"]
[BlackFideId "2019299"]
[WhiteElo "2073"]
[BlackElo "2155"]
[Result "0-1"]
[Round "04"]
[TimeControl "180+1"]
[Date "2022.06.28"]
[WhiteClock "0:01:28"]
[BlackClock "0:00:16"]

1. e4 {[%clk 0:03:00]}  e6 {[%clk 0:02:57]} 2. d3 {[%clk 0:02:58]}  d5 {[%clk 0:02:51]} 3. Nd2 {[%clk 0:02:58]}  Nf6 {[%clk 0:02:50]} 4. Ngf3 {[%clk 0:02:57]}  Nc6 {[%clk 0:02:49]} 5. g3 {[%clk 0:02:57]}  dxe4 {[%clk 0:02:46]} 6. dxe4 {[%clk 0:02:58]}  Bc5 {[%clk 0:02:46]} 7. Bg2 {[%clk 0:02:57]}  e5 {[%clk 0:02:46]} 8. O-O {[%clk 0:02:57]}  O-O {[%clk 0:02:47]} 9. c3 {[%clk 0:02:57]}  a5 {[%clk 0:02:46]} 10. h3 {[%clk 0:02:57]}  Qe7 {[%clk 0:02:46]} 11. Qc2 {[%clk 0:02:57]}  a4 {[%clk 0:02:38]} 12. Kh2 {[%clk 0:02:52]}  h6 {[%clk 0:02:32]} 13. Nc4 {[%clk 0:02:51]}  b6 {[%clk 0:02:17]} 14. Be3 {[%clk 0:02:48]}  Ba6 {[%clk 0:02:13]} 15. b3 {[%clk 0:02:41]}  Bxc4 {[%clk 0:02:07]} 16. bxc4 {[%clk 0:02:40]}  Bxe3 {[%clk 0:02:06]} 17. fxe3 {[%clk 0:02:41]}  a3 {[%clk 0:01:57]} 18. Nh4 {[%clk 0:02:40]}  g6 {[%clk 0:01:56]} 19. Qf2 {[%clk 0:02:39]}  Kg7 {[%clk 0:01:56]} 20. Rad1 {[%clk 0:02:35]}  Rad8 {[%clk 0:01:52]} 21. Rd5 {[%clk 0:02:35]}  Rd6 {[%clk 0:01:46]} 22. g4 {[%clk 0:02:20]}  Nxd5 {[%clk 0:01:36]} 23. exd5 {[%clk 0:02:17]}  Na5 {[%clk 0:01:33]} 24. Qg3 {[%clk 0:02:13]}  Nxc4 {[%clk 0:01:26]} 25. e4 {[%clk 0:02:04]}  Ne3 {[%clk 0:01:19]} 26. Rf3 {[%clk 0:01:54]}  Nxg2 {[%clk 0:01:15]} 27. Nxg2 {[%clk 0:01:55]}  Rf6 {[%clk 0:01:11]} 28. Ne3 {[%clk 0:01:53]}  Rxf3 {[%clk 0:01:11]} 29. Qxf3 {[%clk 0:01:54]}  Qc5 {[%clk 0:01:02]} 30. Qg3 {[%clk 0:01:53]}  Kh7 {[%clk 0:00:50]} 31. h4 {[%clk 0:01:48]}  Qxc3 {[%clk 0:00:48]} 32. h5 {[%clk 0:01:49]}  gxh5 {[%clk 0:00:41]} 33. Qf3 {[%clk 0:01:41]}  f6 {[%clk 0:00:27]} 34. Qf5+ {[%clk 0:01:40]}  Kh8 {[%clk 0:00:20]} 35. Ng2 {[%clk 0:01:39]}  Qd2 {[%clk 0:00:17]} 36. Kg3 {[%clk 0:01:31]}  Qg5 {[%clk 0:00:16]} 37. Ne3 {[%clk 0:01:27]}  Qxe3+ {[%clk 0:00:15]} 38. Kh2 {[%clk 0:01:24]}  Qf4+ {[%clk 0:00:14]} 39. Qxf4 {[%clk 0:01:25]}  exf4 {[%clk 0:00:15]} 40. gxh5 {[%clk 0:01:25]}  Re8 {[%clk 0:00:15]} 41. Kg2 {[%clk 0:01:25]}  Rxe4 {[%clk 0:00:15]} 42. Kf3 {[%clk 0:01:26]}  Re5 {[%clk 0:00:16]} 43. d6 {[%clk 0:01:27]}  cxd6 {[%clk 0:00:16]} 44. Kxf4 {[%clk 0:01:28]}  Rxh5 {[%clk 0:00:16]} 0-1


[Site "https://www.chess.com"]

[Event "Titled Tuesday Blitz June 28 Early 2022"]
[White "Jeet, Jain"]
[Black "Bychkov, Vladimir"]
[WhiteFideId "5073022"]
[BlackFideId "24151513"]
[WhiteElo "2055"]
[BlackElo "2197"]
[Result "1-0"]
[Round "04"]
[TimeControl "180+1"]
[Date "2022.06.28"]
[WhiteClock "0:02:06"]
[BlackClock "0:01:33"]

1. d4 {[%clk 0:03:00]}  Nf6 {[%clk 0:02:53]} 2. Nf3 {[%clk 0:03:00]}  g6 {[%clk 0:02:47]} 3. Nc3 {[%clk 0:02:58]}  d5 {[%clk 0:02:46]} 4. Bf4 {[%clk 0:02:56]}  c6 {[%clk 0:02:45]} 5. e3 {[%clk 0:02:54]}  Bg7 {[%clk 0:02:44]} 6. Bd3 {[%clk 0:02:52]}  Nbd7 {[%clk 0:02:42]} 7. h4 {[%clk 0:02:51]}  a5 {[%clk 0:02:36]} 8. e4 {[%clk 0:02:50]}  dxe4 {[%clk 0:02:36]} 9. Nxe4 {[%clk 0:02:51]}  Nxe4 {[%clk 0:02:36]} 10. Bxe4 {[%clk 0:02:52]}  Nf6 {[%clk 0:02:36]} 11. Bd3 {[%clk 0:02:52]}  Bg4 {[%clk 0:02:36]} 12. c3 {[%clk 0:02:52]}  Qd5 {[%clk 0:02:34]} 13. Be2 {[%clk 0:02:52]}  Nh5 {[%clk 0:02:27]} 14. Be3 {[%clk 0:02:50]}  O-O {[%clk 0:02:23]} 15. Qb3 {[%clk 0:02:50]}  Qd7 {[%clk 0:02:13]} 16. a4 {[%clk 0:02:32]}  Rfe8 {[%clk 0:02:08]} 17. O-O {[%clk 0:02:30]}  Qd5 {[%clk 0:02:01]} 18. Bc4 {[%clk 0:02:22]}  Qf5 {[%clk 0:02:00]} 19. Ng5 {[%clk 0:02:19]}  e6 {[%clk 0:01:58]} 20. f3 {[%clk 0:02:17]}  Ng3 {[%clk 0:01:37]} 21. fxg4 {[%clk 0:02:17]}  Qxg4 {[%clk 0:01:38]} 22. Rxf7 {[%clk 0:02:15]}  Nf5 {[%clk 0:01:35]} 23. Bxe6 {[%clk 0:02:09]}  Kh8 {[%clk 0:01:35]} 24. Rxf5 {[%clk 0:02:05]}  gxf5 {[%clk 0:01:33]} 25. Nf7+ {[%clk 0:02:05]}  Kg8 {[%clk 0:01:33]} 26. Nh6+ {[%clk 0:02:06]} 1-0


[Site "https://www.chess.com"]

[Event "Titled Tuesday Blitz June 28 Early 2022"]
[White "Johnson, Ben"]
[Black "Rios Escobar, Adan"]
[WhiteFideId "2010917"]
[BlackFideId "3403645"]
[WhiteElo "2184"]
[BlackElo "2463"]
[Result "0-1"]
[Round "04"]
[TimeControl "180+1"]
[Date "2022.06.28"]
[WhiteClock "0:00:01"]
[BlackClock "0:00:01"]

1. Nf3 {[%clk 0:02:49]}  Nf6 {[%clk 0:02:54]} 2. c4 {[%clk 0:02:48]}  g6 {[%clk 0:02:54]} 3. b3 {[%clk 0:02:47]}  Bg7 {[%clk 0:02:54]} 4. Bb2 {[%clk 0:02:48]}  O-O {[%clk 0:02:54]} 5. g3 {[%clk 0:02:47]}  d6 {[%clk 0:02:54]} 6. d4 {[%clk 0:02:46]}  e5 {[%clk 0:02:50]} 7. dxe5 {[%clk 0:02:45]}  dxe5 {[%clk 0:02:50]} 8. Qxd8 {[%clk 0:02:41]}  Rxd8 {[%clk 0:02:51]} 9. Bxe5 {[%clk 0:02:40]}  Nc6 {[%clk 0:02:49]} 10. Bb2 {[%clk 0:02:36]}  Nb4 {[%clk 0:02:38]} 11. Na3 {[%clk 0:02:36]}  Ne4 {[%clk 0:02:23]} 12. Bxg7 {[%clk 0:02:31]}  Kxg7 {[%clk 0:02:24]} 13. Bg2 {[%clk 0:02:21]}  Nc3 {[%clk 0:02:18]} 14. e3 {[%clk 0:01:59]}  a5 {[%clk 0:01:44]} 15. O-O {[%clk 0:01:51]}  Nbxa2 {[%clk 0:01:42]} 16. Nd4 {[%clk 0:01:43]}  c6 {[%clk 0:01:32]} 17. Nac2 {[%clk 0:01:31]}  a4 {[%clk 0:01:27]} 18. b4 {[%clk 0:01:23]}  a3 {[%clk 0:01:24]} 19. Nb3 {[%clk 0:00:53]}  Be6 {[%clk 0:01:18]} 20. Na5 {[%clk 0:00:52]}  Rd2 {[%clk 0:01:13]} 21. Nxa3 {[%clk 0:00:43]}  Nxb4 {[%clk 0:01:08]} 22. Nxb7 {[%clk 0:00:37]}  Nba2 {[%clk 0:00:57]} 23. Nb1 {[%clk 0:00:33]}  Rb8 {[%clk 0:00:52]} 24. Nxc3 {[%clk 0:00:24]}  Nxc3 {[%clk 0:00:51]} 25. Na5 {[%clk 0:00:22]}  c5 {[%clk 0:00:44]} 26. Bf3 {[%clk 0:00:22]}  Rbb2 {[%clk 0:00:43]} 27. Kg2 {[%clk 0:00:16]}  Ra2 {[%clk 0:00:34]} 28. Rxa2 {[%clk 0:00:16]}  Rxa2 {[%clk 0:00:35]} 29. Nb7 {[%clk 0:00:15]}  Bxc4 {[%clk 0:00:23]} 30. Rc1 {[%clk 0:00:14]}  Ra3 {[%clk 0:00:18]} 31. Nxc5 {[%clk 0:00:14]}  Bb5 {[%clk 0:00:14]} 32. Ne4 {[%clk 0:00:13]}  Ne2 {[%clk 0:00:13]} 33. Rc5 {[%clk 0:00:12]}  Bd3 {[%clk 0:00:12]} 34. Nd6 {[%clk 0:00:12]}  Nc3 {[%clk 0:00:10]} 35. Rc7 {[%clk 0:00:11]}  Kf6 {[%clk 0:00:09]} 36. Nxf7 {[%clk 0:00:09]}  Ne4 {[%clk 0:00:08]} 37. Nd8 {[%clk 0:00:05]}  Ra2 {[%clk 0:00:08]} 38. Rc6+ {[%clk 0:00:06]}  Ke7 {[%clk 0:00:08]} 39. Nb7 {[%clk 0:00:03]}  Rxf2+ {[%clk 0:00:08]} 40. Kh3 {[%clk 0:00:03]}  Rxf3 {[%clk 0:00:08]} 41. Rc7+ {[%clk 0:00:04]}  Ke8 {[%clk 0:00:07]} 42. Rxh7 {[%clk 0:00:05]}  Bf1+ {[%clk 0:00:07]} 43. Kg4 {[%clk 0:00:04]}  Be2 {[%clk 0:00:06]} 44. Kh3 {[%clk 0:00:03]}  g5 {[%clk 0:00:05]} 45. Rg7 {[%clk 0:00:01]}  Nf6 {[%clk 0:00:01]} 0-1


[Site "https://www.chess.com"]

[Event "Titled Tuesday Blitz June 28 Early 2022"]
[White "Johnson, Donald"]
[Black "Vidonyak, Roman"]
[WhiteFideId "30949122"]
[BlackFideId "14100622"]
[WhiteElo "1724"]
[BlackElo "2341"]
[Result "1-0"]
[Round "04"]
[TimeControl "180+1"]
[Date "2022.06.28"]
[WhiteClock "0:02:45"]
[BlackClock "0:02:18"]

1. e4 {[%clk 0:03:00]}  c5 {[%clk 0:02:57]} 2. c3 {[%clk 0:02:59]}  d5 {[%clk 0:02:54]} 3. exd5 {[%clk 0:02:59]}  Qxd5 {[%clk 0:02:55]} 4. d4 {[%clk 0:02:57]}  Nc6 {[%clk 0:02:53]} 5. Nf3 {[%clk 0:02:56]}  cxd4 {[%clk 0:02:52]} 6. cxd4 {[%clk 0:02:55]}  e5 {[%clk 0:02:50]} 7. Nc3 {[%clk 0:02:53]}  Bb4 {[%clk 0:02:45]} 8. Nxe5 {[%clk 0:02:50]}  Nxe5 {[%clk 0:02:41]} 9. dxe5 {[%clk 0:02:51]}  Qxe5+ {[%clk 0:02:41]} 10. Be2 {[%clk 0:02:51]}  Bxc3+ {[%clk 0:02:41]} 11. bxc3 {[%clk 0:02:52]}  Qxc3+ {[%clk 0:02:39]} 12. Bd2 {[%clk 0:02:52]}  Qf6 {[%clk 0:02:33]} 13. Bb5+ {[%clk 0:02:46]}  Kf8 {[%clk 0:02:18]} 14. Bb4+ {[%clk 0:02:45]}  Ne7 {[%clk 0:02:18]} 15. Qd8# {[%clk 0:02:45]} 1-0


[Site "https://www.chess.com"]

[Event "Titled Tuesday Blitz June 28 Early 2022"]
[White "Joie, Sebastien"]
[Black "Thiel, Thomas"]
[WhiteFideId "650420"]
[BlackFideId "4615964"]
[WhiteElo "2397"]
[BlackElo "2261"]
[Result "1-0"]
[Round "04"]
[TimeControl "180+1"]
[Date "2022.06.28"]
[WhiteClock "0:01:05"]
[BlackClock "0:00:55"]

1. d4 {[%clk 0:03:00]}  Nf6 {[%clk 0:02:58]} 2. c4 {[%clk 0:02:48]}  g6 {[%clk 0:02:58]} 3. Nc3 {[%clk 0:02:43]}  d5 {[%clk 0:02:57]} 4. e3 {[%clk 0:02:35]}  Bg7 {[%clk 0:02:55]} 5. Qb3 {[%clk 0:02:33]}  dxc4 {[%clk 0:02:54]} 6. Bxc4 {[%clk 0:02:32]}  O-O {[%clk 0:02:53]} 7. Nf3 {[%clk 0:02:31]}  Nc6 {[%clk 0:02:52]} 8. Be2 {[%clk 0:02:30]}  Nd7 {[%clk 0:02:48]} 9. O-O {[%clk 0:02:27]}  Nb6 {[%clk 0:02:41]} 10. Rd1 {[%clk 0:02:24]}  a5 {[%clk 0:02:37]} 11. Bd2 {[%clk 0:02:20]}  a4 {[%clk 0:02:36]} 12. Qc2 {[%clk 0:02:17]}  a3 {[%clk 0:02:33]} 13. b3 {[%clk 0:02:17]}  Bf5 {[%clk 0:02:24]} 14. e4 {[%clk 0:02:15]}  Bg4 {[%clk 0:02:23]} 15. d5 {[%clk 0:02:10]}  Nb4 {[%clk 0:02:22]} 16. Qb1 {[%clk 0:02:00]}  Qc8 {[%clk 0:02:03]} 17. Be1 {[%clk 0:01:53]}  e6 {[%clk 0:01:58]} 18. h3 {[%clk 0:01:46]}  Bxf3 {[%clk 0:01:56]} 19. Bxf3 {[%clk 0:01:47]}  exd5 {[%clk 0:01:55]} 20. exd5 {[%clk 0:01:48]}  Re8 {[%clk 0:01:53]} 21. Qc1 {[%clk 0:01:39]}  Qf5 {[%clk 0:01:45]} 22. Qd2 {[%clk 0:01:35]}  Nc2 {[%clk 0:01:41]} 23. Rac1 {[%clk 0:01:34]}  Nxe1 {[%clk 0:01:39]} 24. Rxe1 {[%clk 0:01:34]}  Rxe1+ {[%clk 0:01:38]} 25. Rxe1 {[%clk 0:01:30]}  Rd8 {[%clk 0:01:30]} 26. Nb5 {[%clk 0:01:20]}  Be5 {[%clk 0:01:24]} 27. Nxa3 {[%clk 0:01:18]}  Bf4 {[%clk 0:01:10]} 28. Qd4 {[%clk 0:01:07]}  Bd2 {[%clk 0:00:55]} 29. Qxd2 {[%clk 0:01:05]} 1-0


[Site "https://www.chess.com"]

[Event "Titled Tuesday Blitz June 28 Early 2022"]
[White "Kapitsyn, Mark"]
[Black "Odegov, Artem"]
[WhiteFideId "4116240"]
[BlackFideId "34183644"]
[WhiteElo "2272"]
[BlackElo "2286"]
[Result "0-1"]
[Round "04"]
[TimeControl "180+1"]
[Date "2022.06.28"]
[WhiteClock "0:00:01"]
[BlackClock "0:00:54"]

1. e4 {[%clk 0:03:00]}  e6 {[%clk 0:02:54]} 2. d4 {[%clk 0:03:00]}  d5 {[%clk 0:02:55]} 3. Nd2 {[%clk 0:03:00]}  Nf6 {[%clk 0:02:54]} 4. e5 {[%clk 0:02:58]}  Nfd7 {[%clk 0:02:55]} 5. Bd3 {[%clk 0:02:59]}  c5 {[%clk 0:02:56]} 6. c3 {[%clk 0:02:59]}  Nc6 {[%clk 0:02:57]} 7. Ne2 {[%clk 0:02:59]}  cxd4 {[%clk 0:02:57]} 8. cxd4 {[%clk 0:02:59]}  f6 {[%clk 0:02:58]} 9. exf6 {[%clk 0:02:58]}  Nxf6 {[%clk 0:02:59]} 10. O-O {[%clk 0:02:53]}  Bd6 {[%clk 0:03:00]} 11. Nf3 {[%clk 0:02:53]}  Qc7 {[%clk 0:03:00]} 12. Be3 {[%clk 0:02:47]}  O-O {[%clk 0:02:58]} 13. Ng3 {[%clk 0:02:47]}  e5 {[%clk 0:02:54]} 14. dxe5 {[%clk 0:02:33]}  Nxe5 {[%clk 0:02:55]} 15. Nd4 {[%clk 0:01:56]}  Bg4 {[%clk 0:02:40]} 16. Be2 {[%clk 0:01:42]}  Rae8 {[%clk 0:02:33]} 17. Rc1 {[%clk 0:01:40]}  Qf7 {[%clk 0:02:31]} 18. Nb5 {[%clk 0:01:36]}  Bb8 {[%clk 0:02:19]} 19. Bxg4 {[%clk 0:01:07]}  Nfxg4 {[%clk 0:02:08]} 20. Bc5 {[%clk 0:01:07]}  Qf6 {[%clk 0:01:51]} 21. Bxf8 {[%clk 0:01:02]}  Rxf8 {[%clk 0:01:52]} 22. Qxd5+ {[%clk 0:01:02]}  Kh8 {[%clk 0:01:50]} 23. h3 {[%clk 0:00:56]}  Nxf2 {[%clk 0:01:29]} 24. Ne4 {[%clk 0:00:46]}  Nf3+ {[%clk 0:01:01]} 25. gxf3 {[%clk 0:00:42]}  Nxh3+ {[%clk 0:00:59]} 26. Kh1 {[%clk 0:00:35]}  Qh4 {[%clk 0:00:58]} 27. Qd7 {[%clk 0:00:01]}  Nf2+ {[%clk 0:00:53]} 28. Kg1 {[%clk 0:00:01]}  Qh2# {[%clk 0:00:54]} 0-1


[Site "https://www.chess.com"]

[Event "Titled Tuesday Blitz June 28 Early 2022"]
[White "Kjartansson, David"]
[Black "Madaminov, Mukhiddin"]
[WhiteFideId "2301130"]
[BlackFideId "14210703"]
[WhiteElo "2382"]
[BlackElo "1916"]
[Result "1-0"]
[Round "04"]
[TimeControl "180+1"]
[Date "2022.06.28"]
[WhiteClock "0:00:17"]
[BlackClock "0:00:06"]

1. d4 {[%clk 0:02:52]}  Nf6 {[%clk 0:02:57]} 2. Nc3 {[%clk 0:02:53]}  d5 {[%clk 0:02:55]} 3. Bf4 {[%clk 0:02:53]}  a6 {[%clk 0:02:53]} 4. e3 {[%clk 0:02:50]}  e6 {[%clk 0:02:53]} 5. Nf3 {[%clk 0:02:43]}  Bb4 {[%clk 0:02:51]} 6. a3 {[%clk 0:02:37]}  Bxc3+ {[%clk 0:02:50]} 7. bxc3 {[%clk 0:02:38]}  O-O {[%clk 0:02:50]} 8. c4 {[%clk 0:02:36]}  c5 {[%clk 0:02:48]} 9. dxc5 {[%clk 0:02:19]}  Ne4 {[%clk 0:02:30]} 10. Bd3 {[%clk 0:02:16]}  Qa5+ {[%clk 0:02:29]} 11. Nd2 {[%clk 0:02:12]}  Nc6 {[%clk 0:01:54]} 12. Bxe4 {[%clk 0:02:07]}  dxe4 {[%clk 0:01:55]} 13. Bd6 {[%clk 0:02:05]}  Rd8 {[%clk 0:01:45]} 14. O-O {[%clk 0:02:04]}  f5 {[%clk 0:01:15]} 15. f3 {[%clk 0:02:04]}  exf3 {[%clk 0:01:12]} 16. Nxf3 {[%clk 0:02:04]}  h6 {[%clk 0:01:07]} 17. Qd3 {[%clk 0:02:03]}  b6 {[%clk 0:00:57]} 18. cxb6 {[%clk 0:01:54]}  Qxb6 {[%clk 0:00:58]} 19. c5 {[%clk 0:01:53]}  Qa5 {[%clk 0:00:58]} 20. Kh1 {[%clk 0:01:45]}  Qa4 {[%clk 0:00:44]} 21. Rab1 {[%clk 0:01:43]}  Ne7 {[%clk 0:00:32]} 22. Ne5 {[%clk 0:01:28]}  Nd5 {[%clk 0:00:30]} 23. c4 {[%clk 0:01:21]}  Nf6 {[%clk 0:00:31]} 24. Rb4 {[%clk 0:01:09]}  Qe8 {[%clk 0:00:28]} 25. Rf4 {[%clk 0:00:57]}  Ra7 {[%clk 0:00:21]} 26. Qb1 {[%clk 0:00:52]}  Ne4 {[%clk 0:00:16]} 27. Rxe4 {[%clk 0:00:51]}  fxe4 {[%clk 0:00:17]} 28. Qxe4 {[%clk 0:00:52]}  a5 {[%clk 0:00:17]} 29. Rb6 {[%clk 0:00:48]}  Qf8 {[%clk 0:00:10]} 30. h3 {[%clk 0:00:39]}  Qf1+ {[%clk 0:00:10]} 31. Kh2 {[%clk 0:00:39]}  Qd1 {[%clk 0:00:06]} 32. Rb1 {[%clk 0:00:37]}  Qd2 {[%clk 0:00:06]} 33. Rf1 {[%clk 0:00:34]}  Rxd6 {[%clk 0:00:06]} 34. cxd6 {[%clk 0:00:34]}  Qxd6 {[%clk 0:00:07]} 35. Qf4 {[%clk 0:00:32]}  Rc7 {[%clk 0:00:05]} 36. Rf3 {[%clk 0:00:23]}  Bb7 {[%clk 0:00:05]} 37. Rg3 {[%clk 0:00:23]}  Qf8 {[%clk 0:00:03]} 38. Qxh6 {[%clk 0:00:22]}  Rc5 {[%clk 0:00:02]} 39. Qxe6+ {[%clk 0:00:22]}  Kh8 {[%clk 0:00:02]} 40. Ng6+ {[%clk 0:00:21]}  Kh7 {[%clk 0:00:03]} 41. Nxf8+ {[%clk 0:00:21]}  Kh8 {[%clk 0:00:04]} 42. Ng6+ {[%clk 0:00:20]}  Kh7 {[%clk 0:00:05]} 43. Nf4 {[%clk 0:00:18]}  g5 {[%clk 0:00:04]} 44. Qg6+ {[%clk 0:00:17]}  Kh8 {[%clk 0:00:04]} 45. Rxg5 {[%clk 0:00:17]}  Rxg5 {[%clk 0:00:04]} 46. Qxg5 {[%clk 0:00:17]}  Be4 {[%clk 0:00:05]} 47. Qf6+ {[%clk 0:00:17]}  Kh7 {[%clk 0:00:05]} 48. Qe7+ {[%clk 0:00:17]}  Kh8 {[%clk 0:00:04]} 49. Qxe4 {[%clk 0:00:17]}  a4 {[%clk 0:00:05]} 50. Ng6+ {[%clk 0:00:18]}  Kg7 {[%clk 0:00:06]} 51. Qg4 {[%clk 0:00:17]}  Kh6 {[%clk 0:00:07]} 52. Nh4 {[%clk 0:00:16]}  Kh7 {[%clk 0:00:05]} 53. Nf5 {[%clk 0:00:17]}  Kh8 {[%clk 0:00:06]} 54. Qg7# {[%clk 0:00:17]} 1-0


[Site "https://www.chess.com"]

[Event "Titled Tuesday Blitz June 28 Early 2022"]
[White "Kollars, Dmitrij"]
[Black "Bharath Subramaniyam H"]
[WhiteFideId "12909572"]
[BlackFideId "46634827"]
[WhiteElo "2584"]
[BlackElo "2242"]
[Result "1-0"]
[Round "04"]
[TimeControl "180+1"]
[Date "2022.06.28"]
[WhiteClock "0:00:09"]
[BlackClock "0:00:06"]

1. d4 {[%clk 0:03:00]}  d5 {[%clk 0:02:59]} 2. c4 {[%clk 0:02:59]}  e6 {[%clk 0:02:59]} 3. Nf3 {[%clk 0:02:59]}  Nf6 {[%clk 0:02:59]} 4. g3 {[%clk 0:03:00]}  c6 {[%clk 0:03:00]} 5. Bg2 {[%clk 0:03:00]}  dxc4 {[%clk 0:03:00]} 6. a4 {[%clk 0:03:00]}  Nbd7 {[%clk 0:02:59]} 7. Nfd2 {[%clk 0:02:52]}  Nb6 {[%clk 0:02:34]} 8. a5 {[%clk 0:02:48]}  Nbd5 {[%clk 0:02:35]} 9. Nxc4 {[%clk 0:02:47]}  Be7 {[%clk 0:02:31]} 10. O-O {[%clk 0:02:47]}  O-O {[%clk 0:02:30]} 11. Nc3 {[%clk 0:02:41]}  Bd7 {[%clk 0:02:26]} 12. Qb3 {[%clk 0:02:39]}  Rb8 {[%clk 0:02:21]} 13. e4 {[%clk 0:02:39]}  Nxc3 {[%clk 0:01:50]} 14. bxc3 {[%clk 0:02:40]}  c5 {[%clk 0:01:45]} 15. Bf4 {[%clk 0:02:35]}  Rc8 {[%clk 0:01:42]} 16. d5 {[%clk 0:02:36]}  exd5 {[%clk 0:01:39]} 17. exd5 {[%clk 0:02:37]}  Nh5 {[%clk 0:01:35]} 18. Be5 {[%clk 0:02:21]}  Bf6 {[%clk 0:01:34]} 19. Qxb7 {[%clk 0:02:04]}  Bf5 {[%clk 0:01:31]} 20. Rfe1 {[%clk 0:01:45]}  Bd3 {[%clk 0:01:14]} 21. Bxf6 {[%clk 0:01:41]}  Nxf6 {[%clk 0:01:15]} 22. Ne5 {[%clk 0:01:41]}  Rc7 {[%clk 0:01:16]} 23. Qb2 {[%clk 0:01:34]}  c4 {[%clk 0:01:07]} 24. Rad1 {[%clk 0:01:18]}  Rc5 {[%clk 0:01:07]} 25. a6 {[%clk 0:00:54]}  Nxd5 {[%clk 0:01:02]} 26. Nxd3 {[%clk 0:00:53]}  cxd3 {[%clk 0:01:03]} 27. Rxd3 {[%clk 0:00:54]}  Qb6 {[%clk 0:00:32]} 28. Qxb6 {[%clk 0:00:54]}  Nxb6 {[%clk 0:00:33]} 29. Re7 {[%clk 0:00:54]}  Nc8 {[%clk 0:00:14]} 30. Red7 {[%clk 0:00:45]}  Ra5 {[%clk 0:00:14]} 31. Bb7 {[%clk 0:00:37]}  Nb6 {[%clk 0:00:14]} 32. Rc7 {[%clk 0:00:37]}  g6 {[%clk 0:00:14]} 33. c4 {[%clk 0:00:36]}  Na4 {[%clk 0:00:14]} 34. Kg2 {[%clk 0:00:33]}  Nc5 {[%clk 0:00:07]} 35. Rd5 {[%clk 0:00:29]}  Nxa6 {[%clk 0:00:05]} 36. Rxa5 {[%clk 0:00:23]}  Nxc7 {[%clk 0:00:05]} 37. Rxa7 {[%clk 0:00:24]}  Rd8 {[%clk 0:00:04]} 38. Bc6 {[%clk 0:00:21]}  Ne6 {[%clk 0:00:03]} 39. Bd5 {[%clk 0:00:21]}  Rd6 {[%clk 0:00:02]} 40. f4 {[%clk 0:00:19]}  Kg7 {[%clk 0:00:03]} 41. Kf2 {[%clk 0:00:19]}  Kf6 {[%clk 0:00:03]} 42. Ke3 {[%clk 0:00:19]}  Rb6 {[%clk 0:00:03]} 43. Bxe6 {[%clk 0:00:14]}  Kxe6 {[%clk 0:00:03]} 44. Ra2 {[%clk 0:00:11]}  Rb3+ {[%clk 0:00:03]} 45. Kd4 {[%clk 0:00:12]}  Kd6 {[%clk 0:00:03]} 46. Ra6+ {[%clk 0:00:11]}  Ke7 {[%clk 0:00:03]} 47. Ra7+ {[%clk 0:00:11]}  Ke6 {[%clk 0:00:04]} 48. Ra6+ {[%clk 0:00:11]}  Ke7 {[%clk 0:00:04]} 49. Ra2 {[%clk 0:00:12]}  Rb8 {[%clk 0:00:04]} 50. c5 {[%clk 0:00:11]}  Kd7 {[%clk 0:00:04]} 51. Kd5 {[%clk 0:00:11]}  Rb1 {[%clk 0:00:03]} 52. Ra7+ {[%clk 0:00:10]}  Ke8 {[%clk 0:00:04]} 53. c6 {[%clk 0:00:09]}  Rb2 {[%clk 0:00:04]} 54. Ra8+ {[%clk 0:00:09]}  Ke7 {[%clk 0:00:04]} 55. c7 {[%clk 0:00:09]}  Rc2 {[%clk 0:00:05]} 56. c8=Q {[%clk 0:00:09]}  Rxc8 {[%clk 0:00:06]} 1-0


[Site "https://www.chess.com"]

[Event "Titled Tuesday Blitz June 28 Early 2022"]
[White "Kopczynski, Michal"]
[Black "Dubov, Daniil"]
[WhiteFideId "1124200"]
[BlackFideId "24126055"]
[WhiteElo "2235"]
[BlackElo "2791"]
[Result "0-1"]
[Round "04"]
[TimeControl "180+1"]
[Date "2022.06.28"]
[WhiteClock "0:00:06"]
[BlackClock "0:00:12"]

1. e4 {[%clk 0:03:00]}  c6 {[%clk 0:03:00]} 2. d4 {[%clk 0:03:01]}  d5 {[%clk 0:03:01]} 3. Nc3 {[%clk 0:03:01]}  dxe4 {[%clk 0:03:01]} 4. Nxe4 {[%clk 0:03:02]}  Nf6 {[%clk 0:03:02]} 5. Ng3 {[%clk 0:03:02]}  g6 {[%clk 0:02:59]} 6. Nf3 {[%clk 0:03:02]}  Bg7 {[%clk 0:03:00]} 7. Bg5 {[%clk 0:03:02]}  O-O {[%clk 0:03:00]} 8. Qd2 {[%clk 0:03:01]}  Bg4 {[%clk 0:02:53]} 9. Be2 {[%clk 0:02:59]}  Bxf3 {[%clk 0:02:52]} 10. Bxf3 {[%clk 0:02:59]}  Nbd7 {[%clk 0:02:53]} 11. Bh6 {[%clk 0:02:56]}  Bxh6 {[%clk 0:02:46]} 12. Qxh6 {[%clk 0:02:57]}  Qa5+ {[%clk 0:02:46]} 13. c3 {[%clk 0:02:53]}  e5 {[%clk 0:02:47]} 14. O-O {[%clk 0:02:43]}  exd4 {[%clk 0:02:44]} 15. cxd4 {[%clk 0:02:44]}  Rfe8 {[%clk 0:02:44]} 16. h4 {[%clk 0:02:35]}  Nf8 {[%clk 0:02:39]} 17. h5 {[%clk 0:02:28]}  Ne6 {[%clk 0:02:37]} 18. hxg6 {[%clk 0:02:27]}  hxg6 {[%clk 0:02:37]} 19. Rad1 {[%clk 0:02:16]}  Rad8 {[%clk 0:02:33]} 20. d5 {[%clk 0:01:39]}  cxd5 {[%clk 0:02:28]} 21. Rfe1 {[%clk 0:01:27]}  Ng7 {[%clk 0:02:14]} 22. Rxe8+ {[%clk 0:01:20]}  Rxe8 {[%clk 0:02:15]} 23. Qg5 {[%clk 0:01:16]}  Re1+ {[%clk 0:02:09]} 24. Rxe1 {[%clk 0:01:13]}  Qxe1+ {[%clk 0:02:10]} 25. Kh2 {[%clk 0:01:14]}  Qe6 {[%clk 0:02:10]} 26. Ne2 {[%clk 0:01:05]}  Qd6+ {[%clk 0:01:59]} 27. g3 {[%clk 0:01:03]}  b6 {[%clk 0:01:41]} 28. Nd4 {[%clk 0:00:53]}  Nge8 {[%clk 0:01:31]} 29. Nf5 {[%clk 0:00:45]}  Qc5 {[%clk 0:01:27]} 30. Nh6+ {[%clk 0:00:38]}  Kf8 {[%clk 0:01:25]} 31. Kg2 {[%clk 0:00:35]}  Qd4 {[%clk 0:01:21]} 32. b3 {[%clk 0:00:29]}  Nd6 {[%clk 0:01:17]} 33. Ng4 {[%clk 0:00:23]}  Nxg4 {[%clk 0:01:17]} 34. Bxg4 {[%clk 0:00:16]}  Qxf2+ {[%clk 0:00:52]} 35. Kxf2 {[%clk 0:00:14]}  Ne4+ {[%clk 0:00:52]} 36. Ke3 {[%clk 0:00:14]}  Nxg5 {[%clk 0:00:53]} 37. Kd4 {[%clk 0:00:15]}  f5 {[%clk 0:00:50]} 38. Be2 {[%clk 0:00:14]}  Ne4 {[%clk 0:00:50]} 39. g4 {[%clk 0:00:12]}  f4 {[%clk 0:00:26]} 40. Bf3 {[%clk 0:00:11]}  Ke7 {[%clk 0:00:19]} 41. Kxd5 {[%clk 0:00:11]}  Nd2 {[%clk 0:00:19]} 42. Be2 {[%clk 0:00:04]}  f3 {[%clk 0:00:20]} 43. Bd3 {[%clk 0:00:04]}  f2 {[%clk 0:00:20]} 44. Kc6 {[%clk 0:00:03]}  f1=Q {[%clk 0:00:15]} 45. Bxf1 {[%clk 0:00:02]}  Nxf1 {[%clk 0:00:16]} 46. Kb7 {[%clk 0:00:03]}  Kd6 {[%clk 0:00:16]} 47. Kxa7 {[%clk 0:00:03]}  Kc7 {[%clk 0:00:17]} 48. a4 {[%clk 0:00:03]}  Nh2 {[%clk 0:00:17]} 49. g5 {[%clk 0:00:02]}  Nf3 {[%clk 0:00:17]} 50. b4 {[%clk 0:00:03]}  Nd4 {[%clk 0:00:10]} 51. a5 {[%clk 0:00:03]}  bxa5 {[%clk 0:00:07]} 52. bxa5 {[%clk 0:00:04]}  Nc6+ {[%clk 0:00:07]} 53. Ka6 {[%clk 0:00:04]}  Kd6 {[%clk 0:00:06]} 54. Kb5 {[%clk 0:00:04]}  Nxa5 {[%clk 0:00:06]} 55. Kxa5 {[%clk 0:00:04]}  Ke5 {[%clk 0:00:07]} 56. Kb4 {[%clk 0:00:04]}  Kf5 {[%clk 0:00:08]} 57. Kc3 {[%clk 0:00:04]}  Kxg5 {[%clk 0:00:09]} 58. Kd3 {[%clk 0:00:05]}  Kf4 {[%clk 0:00:09]} 59. Ke2 {[%clk 0:00:05]}  Kg3 {[%clk 0:00:10]} 60. Kf1 {[%clk 0:00:05]}  g5 {[%clk 0:00:10]} 61. Kg1 {[%clk 0:00:06]}  g4 {[%clk 0:00:11]} 62. Kf1 {[%clk 0:00:06]}  Kh2 {[%clk 0:00:11]} 63. Kf2 {[%clk 0:00:06]}  g3+ {[%clk 0:00:12]} 0-1


[Site "https://www.chess.com"]